bitfinex/quotes_ETHUSD_20220218
["timestamp","ask_amount","ask_price","bid_price","bid_amount"]
[1645212466127,2.6789215,2801.8,2801.6,0.0017106]
[1645212466128,0.8929715,2801.8,2801.6,0.0017106]
[1645212466783,1.0,2801.7,2801.6,0.0017106]
[1645212466983,1.0,2801.7,2801.3,1.51718404]
[1645212467183,1.0,2801.7,2801.6,0.0017106]
[1645212467382,0.8929715,2801.8,2801.7,1.61821199]
[1645212467989,1.8929715,2801.8,2801.7,1.61821199]
[1645212469885,1.0,2801.8,2801.7,1.61821199]
[1645212470087,1.0,2801.8,2801.7,3.13518128]
[1645212470725,1.0,2801.8,2801.7,3.46113452]
[1645212472927,1.0,2801.8,2801.7,3.60390852]
[1645212473429,1.0,2801.8,2801.7,3.46113452]
[1645212475678,1.0,2801.8,2801.7,3.48786074]
[1645212476881,0.99866662,2801.8,2801.7,3.63063274]
[1645212477078,1.7852822,2802.5,2801.7,3.63063274]
[1645212477278,1.7852822,2802.5,2801.8,1.51696929]
[1645212477924,1.0,2801.9,2801.8,1.51696929]
[1645212478928,1.0,2801.9,2801.7,1.97089145]
[1645212478929,1.0,2801.9,2801.7,1.67089145]
[1645212479428,1.0,2801.8,2801.7,1.67260195]
[1645212480127,1.0,2801.8,2801.7,1.67089145]
[1645212480529,1.0,2801.8,2801.7,1.61821199]
[1645212480931,1.0,2801.8,2801.7,1.76101399]
[1645212481126,1.0,2801.8,2801.7,1.61821199]
[1645212482776,1.3,2801.8,2801.7,1.61821199]
[1645212482978,4.8,2801.8,2801.7,1.61821199]
[1645212483177,1.3,2801.8,2801.7,1.61821199]
[1645212483377,12.22,2801.8,2801.7,1.61821199]
[1645212483581,1.0,2801.8,2801.7,1.61821199]
[1645212487134,1.0,2801.8,2801.7,3.13524227]
[1645212487739,4.41663746,2802.8,2801.8,6.61806493]
[1645212487936,3.0577,2802.8,2802.3,0.66734203]
[1645212488137,1.35893746,2803.0,2802.3,0.66734203]
[1645212488336,3.14409746,2803.0,2802.3,0.66734203]
[1645212488539,0.02066662,2802.4,2802.0,4.6068]
[1645212488739,0.02066662,2802.4,2802.2,0.142765]
[1645212488937,0.8925359,2802.6,2802.2,0.142765]
[1645212489180,0.02066662,2802.3,2802.1,0.00171028]
[1645212489483,5.57139223,2803.0,2802.1,0.00171028]
[1645212489484,0.02066662,2802.2,2802.1,0.00171028]
[1645212489682,0.02066662,2802.2,2802.0,5.0852]
[1645212490084,0.3,2802.9,2802.1,0.00171029]
[1645212490382,0.89267,2802.7,2802.1,0.00171029]
[1645212490580,0.02066662,2802.2,2802.1,0.00171029]
[1645212490980,0.02066662,2802.2,2802.0,1.51687127]
[1645212491182,0.02066662,2802.2,2802.1,0.1784]
[1645212491390,0.02066662,2802.2,2802.1,2.21027127]
[1645212491581,0.02066662,2802.2,2802.1,2.51027127]
[1645212492381,6.662e-05,2802.2,2802.1,2.51027127]
[1645212492581,6.662e-05,2802.2,2802.1,3.40254127]
[1645212494328,6.662e-05,2802.2,2802.1,23.82254127]
[1645212494532,6.662e-05,2802.7,2802.3,0.89214]
[1645212494727,0.00547363,2803.4,2802.6,23.44901]
[1645212494929,0.00547363,2803.4,2803.0,0.48801]
[1645212495129,2.42716477,2803.6,2803.0,0.48801]
[1645212495130,1.0086263,2803.6,2803.1,10.71007127]
[1645212495328,1.0086263,2803.6,2803.3,0.68927433]
[1645212495530,0.00237949,2804.5,2803.4,0.6932]
[1645212495831,4.07913746,2804.6,2803.4,0.6932]
[1645212496131,1.35893746,2804.5,2803.4,0.6932]
[1645212496330,1.35893746,2804.5,2803.4,0.1782]
[1645212496331,0.63857476,2804.3,2803.4,0.1782]
[1645212496531,11.81232,2804.2,2803.3,0.14269]
[1645212496796,11.81232,2804.2,2803.0,0.13819997]
[1645212496990,13.17125746,2804.2,2803.0,0.13819997]
[1645212497187,0.8921171,2804.2,2803.0,3.63819997]
[1645212497388,0.8921171,2804.2,2803.2,0.89205]
[1645212497389,0.0023882,2803.9,2803.2,0.89205]
[1645212497588,0.0023882,2803.9,2803.3,0.3]
[1645212498187,3.07775127,2804.3,2803.3,0.3]
[1645212498188,3.0682,2804.3,2803.3,0.3]
[1645212498587,0.00238823,2803.7,2803.5,0.7042491]
[1645212498788,0.00238823,2803.7,2803.2,0.515]
[1645212499191,0.00238823,2803.7,2803.0,4.08993347]
[1645212499489,0.89225,2804.1,2803.0,4.08819997]
[1645212499688,0.00238821,2803.6,2803.0,4.08993347]
[1645212499893,0.00238821,2803.6,2803.2,0.87645852]
[1645212500732,0.89222,2804.2,2803.6,0.02324186]
[1645212500929,3.568807,2804.2,2803.6,0.04719032]
[1645212502133,0.00237971,2804.0,2803.6,0.04719032]
[1645212503138,2.676587,2804.2,2803.6,0.04719032]
[1645212503336,0.00237973,2803.9,2803.6,0.04719032]
[1645212504322,2.676587,2804.2,2803.6,0.04719032]
[1645212504518,0.00238044,2803.9,2803.6,0.04719032]
[1645212505416,0.8921647,2804.2,2803.8,0.02391534]
[1645212505616,0.00238044,2803.9,2803.8,0.02391534]
[1645212506617,3.07772023,2804.3,2803.8,0.02391534]
[1645212506618,3.0682,2804.3,2803.8,0.02391534]
[1645212506819,3.0182,2804.3,2803.8,0.02391534]
[1645212507016,0.00238042,2804.0,2803.8,0.02391534]
[1645212507618,0.00238042,2804.0,2803.8,0.20211534]
[1645212508034,2.7202,2804.6,2803.8,0.20211534]
[1645212508231,0.00238041,2804.0,2803.9,0.8918]
[1645212508432,0.00238041,2804.0,2803.9,2.90835966]
[1645212508733,0.00238041,2804.0,2803.9,3.60155966]
[1645212509133,2.33820101,2805.1,2803.9,6.20976966]
[1645212509337,0.00951988,2804.5,2804.1,0.3]
[1645212509633,0.00951988,2804.5,2804.2,0.6932]
[1645212510334,2.5425,2805.2,2804.2,0.6932]
[1645212510532,0.00238025,2804.5,2804.2,0.6932]
[1645212510737,0.00238025,2804.5,2803.9,4.0172]
[1645212510932,0.00238025,2804.5,2803.9,3.839]
[1645212511334,0.00238025,2804.5,2804.0,0.1782]
[1645212511533,2.5425,2805.2,2804.0,0.1782]
[1645212512002,2.5425,2805.2,2804.2,0.7276647]
[1645212512003,0.00238028,2804.3,2804.2,0.7276647]
[1645212512692,2.5425,2805.2,2804.2,0.7276647]
[1645212512894,6.29642161,2805.4,2804.4,0.8917]
[1645212512895,0.04521838,2804.8,2804.4,0.8917]
[1645212513095,0.04521838,2804.8,2804.5,4.1932]
[1645212513895,0.03569872,2804.8,2804.5,4.1932]
[1645212514098,2.8242,2805.7,2804.5,5.97624]
[1645212514297,0.0023802,2804.8,2804.6,0.3]
[1645212514500,0.0023802,2804.8,2804.7,0.6932]
[1645212515099,2.8242,2805.7,2804.7,1.52657887]
[1645212515302,0.00238018,2804.9,2804.7,1.52657887]
[1645212515941,0.00238018,2804.9,2804.3,1.3994]
[1645212516141,0.00238018,2804.9,2804.3,1.2212]
[1645212516341,1.82889422,2805.3,2804.3,1.2212]
[1645212516342,3.5,2805.2,2804.3,1.2212]
[1645212516748,3.5,2805.2,2804.0,1.1827]
[1645212516749,0.0023802,2804.7,2804.0,1.1827]
[1645212516950,0.0023802,2804.7,2803.9,3.839]
[1645212517444,0.8920392,2804.6,2803.9,3.839]
[1645212517645,1.7840592,2804.6,2803.9,3.839]
[1645212517847,1.7840592,2804.6,2803.3,1.3683]
[1645212518049,0.00238025,2804.4,2803.4,3.7832]
[1645212518446,0.00238025,2804.4,2803.6,0.86574849]
[1645212518647,0.8920523,2804.3,2803.6,0.86574849]
[1645212519047,0.00238033,2804.0,2803.6,0.86574849]
[1645212520011,0.8921185,2804.2,2803.6,0.86574849]
[1645212520212,0.00238036,2803.9,2803.4,3.7832]
[1645212521115,14.92004663,2804.6,2803.4,3.7832]
[1645212521116,3.0723,2804.6,2803.4,3.7832]
[1645212521315,2.5361,2804.8,2803.5,6.1782]
[1645212521516,0.00238038,2803.8,2803.6,5.515]
[1645212521724,0.00238038,2803.8,2803.7,0.1782]
[1645212521915,0.00238038,2803.8,2803.7,0.6932]
[1645212522117,0.00951967,2804.3,2803.9,0.00334322]
[1645212522319,2.5361,2804.8,2803.9,0.18154322]
[1645212523743,2.5361,2804.8,2804.3,0.64332739]
[1645212523744,0.00238205,2804.5,2804.3,0.64332739]
[1645212523940,0.00238205,2804.5,2803.9,0.00334322]
[1645212524745,16.20387,2805.1,2803.9,0.00334322]
[1645212524746,0.8919432,2804.7,2803.9,0.00334322]
[1645212524944,0.8919432,2804.7,2804.2,0.73581848]
[1645212524945,0.00238208,2804.3,2804.2,0.73581848]
[1645212525946,0.00544626,2805.1,2804.2,4.23581848]
[1645212526146,0.00544626,2805.1,2804.3,0.1782]
[1645212526147,0.00238207,2804.4,2804.3,0.1782]
[1645212526345,0.00238207,2804.4,2804.3,9.9919379]
[1645212527209,0.00544626,2805.6,2804.5,0.89147]
[1645212527409,0.04521196,2804.9,2804.6,0.6932]
[1645212527613,0.04521196,2804.9,2804.7,3.5]
[1645212527811,0.04521196,2804.9,2804.8,3.17608106]
[1645212528111,0.04521196,2804.9,2804.8,2.99788106]
[1645212528311,0.00544626,2806.0,2804.8,2.99788106]
[1645212528513,0.00544626,2806.0,2805.0,0.89151]
[1645212528715,0.03536823,2805.4,2805.0,0.89151]
[1645212529614,0.89696596,2806.1,2805.2,0.89145]
[1645212529814,0.00186177,2805.3,2805.2,0.89145]
[1645212530016,0.00186177,2805.3,2805.2,1.40645]
[1645212530437,0.00186177,2805.3,2805.2,1.70645]
[1645212530838,0.00544626,2806.1,2805.8,0.75015621]
[1645212531042,2.46134626,2806.2,2805.8,0.75015621]
[1645212531245,0.00544626,2806.5,2805.8,0.75015621]
[1645212532038,1.78295,2806.4,2805.8,0.75015621]
[1645212532240,0.00249142,2806.3,2805.8,0.75015621]
[1645212532439,0.00793768,2806.3,2805.8,0.75015621]
[1645212533140,0.00544626,2806.3,2805.8,0.75015621]
[1645212533438,0.00249144,2806.2,2805.8,0.75015621]
[1645212533842,0.00249144,2806.2,2805.8,1.05015621]
[1645212534043,0.00249144,2806.2,2805.9,0.1781]
[1645212534292,0.00544626,2807.0,2805.9,0.1781]
[1645212534694,0.00544626,2807.0,2806.7,0.78262422]
[1645212534894,5.0805,2807.1,2806.0,1.1348]
[1645212534895,0.00544626,2807.1,2806.0,1.1348]
[1645212535095,0.89118,2806.9,2806.1,0.1781]
[1645212535296,0.00544626,2806.8,2806.0,1.1348]
[1645212535495,0.00544626,2806.8,2806.1,0.142587]
[1645212535694,0.00544626,2806.8,2806.2,0.1781]
[1645212535894,0.00261571,2806.6,2806.2,0.76906802]
[1645212536097,0.89126,2806.6,2806.1,0.1781]
[1645212536294,12.70252,2806.9,2806.0,1.16035637]
[1645212536494,1.78252,2806.9,2806.0,0.02555637]
[1645212537496,0.8912442,2806.9,2806.0,0.02555637]
[1645212537695,0.89125,2807.0,2806.1,0.89117]
[1645212538373,0.00200963,2806.7,2806.5,0.66347854]
[1645212538971,0.00200963,2806.7,2806.2,0.1781]
[1645212539171,0.89118,2806.9,2806.3,0.142578]
[1645212539571,0.89118,2806.9,2806.0,1.24725637]
[1645212539572,0.00200973,2806.7,2806.0,1.24725637]
[1645212539772,0.00200973,2806.7,2806.1,0.1781]
[1645212540275,0.00200973,2806.7,2806.3,0.71511156]
[1645212540478,1.82060472,2807.2,2806.3,0.71511156]
[1645212540479,1.7824255,2807.2,2806.3,0.71511156]
[1645212540774,0.00261554,2806.7,2806.3,0.71511156]
[1645212541175,0.00261554,2806.7,2806.1,0.1789]
[1645212541373,1.78536744,2806.7,2806.1,0.0008]
[1645212541572,1.7827519,2806.7,2806.1,0.0008]
[1645212541986,0.89139,2806.6,2806.1,0.0008]
[1645212542187,0.89139,2806.6,2806.2,0.81430138]
[1645212542387,0.89139,2806.6,2806.1,0.0008]
[1645212543787,1.7826965,2806.6,2806.1,0.0008]
[1645212543988,0.89139,2806.6,2806.1,0.0008]
[1645212544989,1.7827135,2806.6,2806.1,0.0008]
[1645212548454,1.78283,2806.5,2806.1,0.0008]
[1645212548652,1.7829319,2806.4,2806.1,0.0008]
[1645212548852,2.6743819,2806.4,2806.1,0.0008]
[1645212549291,0.3,2806.3,2806.1,0.0008]
[1645212549490,16.62671655,2806.2,2804.7,1.3959]
[1645212549691,16.62671655,2806.2,2804.7,1.2178]
[1645212549692,11.6132,2806.1,2804.7,1.2178]
[1645212549891,11.6132,2806.1,2804.5,3.7568]
[1645212549892,10.92,2806.0,2804.5,3.7568]
[1645212550093,0.1782,2805.9,2804.5,3.7568]
[1645212550292,0.1782,2805.9,2804.4,1.2336]
[1645212550293,11.435,2805.8,2804.4,1.2336]
[1645212550490,0.65735309,2805.4,2804.4,1.94720758]
[1645212550693,1.7838148,2805.2,2804.4,1.94720758]
[1645212550891,0.8919,2805.0,2804.4,1.94720758]
[1645212551090,0.8919,2805.0,2804.4,0.71360758]
[1645212551291,0.8919,2805.0,2804.1,0.1782]
[1645212551692,0.8919114,2804.9,2804.1,0.1782]
[1645212551892,11.81178,2805.3,2804.1,0.1782]
[1645212552092,14.52708,2805.3,2804.1,0.1782]
[1645212552593,0.1782,2805.7,2804.2,10.92]
[1645212552793,0.03866538,2805.3,2805.1,0.89145]
[1645212553047,0.03866538,2805.3,2805.2,0.81644957]
[1645212553646,7.5163073,2806.2,2804.8,1.8903]
[1645212553845,0.9302158,2805.8,2804.8,1.8903]
[1645212554448,0.9302158,2805.8,2804.8,1.3753]
[1645212554646,0.9302158,2805.8,2805.0,0.81249964]
[1645212554845,0.8915521,2805.8,2805.0,0.81249964]
[1645212555045,0.8915521,2805.8,2804.8,1.3753]
[1645212555248,0.8916,2805.7,2804.8,1.3753]
[1645212556551,13.59495,2805.7,2804.8,1.3753]
[1645212557588,13.59495,2805.7,2804.8,1.1971]
[1645212557988,0.89167,2805.6,2804.8,1.1971]
[1645212558188,0.89167,2805.6,2804.9,0.1782]
[1645212558394,0.89167,2805.6,2804.8,1.1971]
[1645212558395,0.8917173,2805.4,2804.8,1.1971]
[1645212558889,0.8917173,2805.4,2804.7,0.1782]
[1645212559696,0.89172,2805.3,2804.7,0.1782]
[1645212559892,0.8917414,2805.2,2804.7,0.1782]
[1645212560295,0.65765512,2805.5,2804.7,0.1782]
[1645212560541,0.03799248,2805.6,2805.0,0.05085669]
[1645212560744,0.89169,2805.4,2805.0,0.05085669]
[1645212561047,0.8915767,2805.8,2805.0,0.05085669]
[1645212561241,0.03799234,2805.7,2805.0,0.05085669]
[1645212562041,1.7831367,2805.8,2805.0,0.05085669]
[1645212562444,12.7031367,2805.8,2805.0,0.05085669]
[1645212563244,11.81175,2805.6,2805.0,0.05085669]
[1645212563446,1.7834949,2805.5,2805.0,0.05085669]
[1645212563843,3.5669646,2805.5,2805.0,0.05085669]
[1645212564044,3.29925012,2805.9,2805.0,0.05085669]
[1645212564045,0.33875012,2805.8,2805.0,0.05085669]
[1645212564298,2.9605,2805.9,2805.0,0.05085669]
[1645212564498,11.81154,2805.8,2805.0,0.05085669]
[1645212564702,12.7030827,2805.8,2805.0,0.05085669]
[1645212565299,12.7030827,2805.8,2805.2,0.02574606]
[1645212566100,6.5,2805.4,2805.0,0.02507744]
[1645212566306,19.2033698,2805.4,2805.0,0.02507744]
[1645212566501,11.92,2805.3,2805.0,7.744e-05]
[1645212566702,10.92,2805.1,2805.0,7.744e-05]
[1645212567961,2.12827475,2805.2,2805.0,7.744e-05]
[1645212568152,0.89743463,2805.2,2805.0,7.744e-05]
[1645212568351,0.00541903,2805.2,2805.0,7.744e-05]
[1645212568555,2.33634942,2805.6,2805.0,7.744e-05]
[1645212568556,0.00541903,2805.5,2805.0,7.744e-05]
[1645212568751,0.00541903,2805.3,2805.0,7.744e-05]
[1645212568959,0.00541903,2805.5,2805.0,7.744e-05]
[1645212569153,0.03798022,2805.6,2805.1,0.1782]
[1645212569451,1.35893746,2806.5,2805.1,0.1782]
[1645212569452,0.00541903,2806.0,2805.1,1.06964]
[1645212569652,0.00541903,2806.1,2805.1,0.1782]
[1645212569856,0.03797994,2805.7,2805.1,0.1782]
[1645212570654,0.02754632,2805.7,2805.1,0.1782]
[1645212570855,0.04730608,2805.7,2805.1,0.1782]
[1645212571894,0.04730608,2805.7,2805.4,0.7257642]
[1645212572094,0.04188705,2805.7,2805.4,0.7257642]
[1645212572697,0.04188705,2805.7,2805.5,3.6782]
[1645212573097,0.04188705,2805.7,2805.6,0.515]
[1645212573297,0.04188705,2805.7,2805.6,0.6932]
[1645212575301,0.04286213,2805.7,2805.6,0.6932]
[1645212576541,0.04506409,2806.2,2805.6,0.6932]
[1645212576542,0.04506409,2806.2,2805.6,0.515]
[1645212576744,0.89990639,2806.7,2805.6,0.515]
[1645212576745,0.00541903,2806.4,2805.6,0.515]
[1645212576941,0.89753504,2806.7,2805.6,0.515]
[1645212576942,0.04506409,2806.2,2805.6,0.515]
[1645212577641,0.04506409,2806.2,2805.8,0.88003295]
[1645212578241,3.64331146,2806.9,2805.8,0.88003295]
[1645212578242,0.90295407,2806.6,2805.8,0.88003295]
[1645212578441,0.00541903,2806.4,2805.8,0.88003295]
[1645212578840,0.04506321,2806.5,2805.8,0.88003295]
[1645212579046,0.04506321,2806.5,2805.9,4.3912]
[1645212579307,0.04506321,2806.5,2806.0,1.69291467]
[1645212579501,0.00541903,2806.8,2806.1,2.02981467]
[1645212579702,0.05063604,2806.7,2806.5,0.71781202]
[1645212579902,0.05063604,2806.7,2806.6,0.515]
[1645212580702,0.04810431,2806.7,2806.6,0.515]
[1645212580901,0.00253209,2806.7,2806.6,0.6931]
[1645212581603,0.89648903,2807.3,2806.6,0.6931]
[1645212582002,0.00253208,2806.8,2806.6,0.515]
[1645212582803,0.00541903,2807.1,2806.6,0.515]
[1645212583046,0.00253207,2806.8,2806.6,0.515]
[1645212583451,0.00253207,2806.8,2805.9,3.9964]
[1645212583452,5.0,2806.7,2805.9,3.9964]
[1645212583646,5.0,2806.7,2805.9,4.87333242]
[1645212583647,0.00541903,2806.6,2805.9,4.87333242]
[1645212583848,4.95541903,2806.7,2805.9,3.8183]
[1645212584048,0.8914378,2806.5,2805.9,3.8183]
[1645212584245,0.8914378,2806.5,2805.8,1.1581]
[1645212584448,0.8914378,2806.5,2805.5,3.7443]
[1645212584648,0.8914378,2806.5,2805.6,0.1781]
[1645212584847,0.89145,2806.4,2805.6,0.1781]
[1645212585049,0.89145,2806.4,2805.6,0.9161338]
[1645212585247,0.89145,2806.4,2805.6,0.7380338]
[1645212585448,0.89145,2806.4,2805.5,3.886898]
[1645212585650,0.89145,2806.4,2805.5,3.7443]
[1645212585850,1.1913686,2806.3,2805.5,3.7443]
[1645212586050,13.70297,2806.4,2805.5,3.7443]
[1645212586051,11.81145,2806.4,2805.5,3.7443]
[1645212586250,2.0828943,2806.3,2805.5,3.7443]
[1645212586450,0.89148,2806.2,2805.5,3.7443]
[1645212587599,1.7829061,2806.2,2805.6,0.1781]
[1645212587798,0.89145,2806.1,2805.6,0.1781]
[1645212587999,0.89145,2806.1,2805.5,0.1781]
[1645212588000,2.6745272,2806.1,2805.5,0.1781]
[1645212588197,2.6745272,2806.1,2804.9,4.015]
[1645212588198,1.7830772,2806.1,2805.0,4.0022]
[1645212588596,1.7830772,2806.1,2805.0,3.824]
[1645212588998,2.6746172,2806.1,2805.1,0.1782]
[1645212589300,1.55889367,2805.8,2805.1,0.1782]
[1645212590745,1.55889367,2805.8,2804.9,0.1782]
[1645212590946,2.12697367,2805.8,2804.6,1.2268]
[1645212591146,1.12697367,2805.8,2804.6,1.2268]
[1645212591345,1.12697367,2805.8,2804.7,0.1782]
[1645212591645,0.67542776,2805.3,2804.7,0.1782]
[1645212591843,0.67542776,2805.3,2804.4,0.63517979]
[1645212591844,0.8917668,2805.2,2804.4,0.63517979]
[1645212592043,0.89177,2805.4,2804.3,3.9154]
[1645212592246,0.89177,2805.4,2804.4,1.51552219]
[1645212593047,0.63860103,2805.3,2804.4,1.51552219]
[1645212593545,0.891778,2805.0,2804.4,1.51552219]
[1645212594193,1.78352,2805.4,2804.4,5.31552219]
[1645212594194,0.03572987,2805.4,2804.4,5.31552219]
[1645212594396,0.03572987,2805.4,2804.5,2.20872219]
[1645212594592,0.03572987,2805.4,2804.7,1.78284]
[1645212594895,0.03572987,2805.4,2804.8,5.70872219]
[1645212595094,0.03572987,2805.4,2804.9,1.51552219]
[1645212595293,0.03572987,2805.4,2805.0,0.1782]
[1645212595495,0.03572958,2805.5,2805.0,1.06967]
[1645212596194,2.9412,2806.1,2805.0,1.06967]
[1645212596393,2.9412,2806.1,2805.2,0.8458899]
[1645212596594,0.03572875,2805.8,2805.3,0.1782]
[1645212597499,0.8914846,2806.0,2805.1,0.1782]
[1645212598244,0.8914846,2806.0,2805.1,0.83125206]
[1645212599447,2.98645621,2806.1,2805.2,0.515]
[1645212599645,2.98645621,2806.1,2805.3,0.1782]
[1645212599846,0.01582743,2805.4,2805.3,0.1782]
[1645212600864,0.03067707,2805.5,2805.4,0.02228353]
[1645212601048,0.03067707,2805.5,2805.4,0.20048353]
[1645212601451,0.03067707,2805.5,2805.4,0.02228353]
[1645212609047,1.90664875,2805.5,2805.4,0.02228353]
[1645212610196,2.20664875,2805.5,2805.4,0.02228353]
[1645212610400,13.12664875,2805.5,2805.4,0.02228353]
[1645212610695,13.12664875,2805.5,2804.3,3.6782]
[1645212610696,10.92,2805.3,2804.3,3.6782]
[1645212610895,12.7040775,2805.2,2804.1,3.6782]
[1645212611096,12.7040775,2805.2,2804.2,1.51559907]
[1645212611097,1.7840775,2805.2,2804.2,1.51559907]
[1645212611294,12.7040775,2805.2,2804.2,1.51559907]
[1645212611494,1.7840775,2805.2,2804.2,1.51559907]
[1645212611895,0.65687887,2804.9,2804.2,1.51559907]
[1645212612096,1.7837347,2805.0,2804.2,1.51559907]
[1645212612299,0.03781421,2805.3,2804.2,1.51559907]
[1645212612496,0.03781421,2805.3,2804.2,2.40732907]
[1645212612698,0.03781421,2805.3,2804.3,1.69379907]
[1645212612953,0.03781421,2805.3,2804.3,0.1782]
[1645212613141,0.8916984,2805.3,2804.3,7.6682]
[1645212613341,0.8916984,2805.3,2804.4,1.51550446]
[1645212613541,0.8916984,2805.3,2804.5,0.1782]
[1645212614042,0.8916984,2805.3,2804.4,0.1782]
[1645212614242,1.87597168,2804.8,2804.5,1.51546323]
[1645212614444,1.87597168,2804.8,2804.4,0.1782]
[1645212614643,1.87597168,2804.8,2804.4,3.6782]
[1645212614945,1.87597168,2804.8,2804.5,2.40708502]
[1645212615144,1.87597168,2804.8,2804.6,1.69365502]
[1645212615345,1.87597168,2804.8,2804.7,1.51545502]
[1645212615944,1.87597168,2804.8,2804.6,1.51545502]
[1645212616143,1.87597168,2804.8,2804.7,1.51545502]
[1645212616344,1.87597168,2804.8,2804.5,0.957618]
[1645212616544,1.87597168,2804.8,2804.6,1.51537908]
[1645212616795,1.87597168,2804.8,2804.6,2.40697908]
[1645212616995,1.87597168,2804.8,2804.6,0.8916]
[1645212617192,1.87597168,2804.8,2804.5,0.142618]
[1645212617893,1.87597168,2804.8,2804.0,6.1336]
[1645212618096,1.87597168,2804.8,2804.1,1.51551299]
[1645212619299,0.0332673,2805.2,2804.1,1.51551299]
[1645212619500,0.03793408,2805.0,2804.5,2.39164]
[1645212619699,1.87597168,2804.6,2804.5,2.39164]
[1645212620298,1.87597168,2804.6,2804.5,0.89164]
[1645212620542,1.87597168,2804.6,2804.1,0.3]
[1645212620745,0.25944634,2804.6,2804.3,0.8917]
[1645212620944,0.25944634,2804.6,2804.4,1.51549318]
[1645212621844,0.25944634,2804.6,2804.2,0.1782]
[1645212622040,0.25944634,2804.6,2804.3,1.51549768]
[1645212624695,0.01678865,2804.7,2804.3,1.51549768]
[1645212624895,0.25944634,2804.5,2804.3,1.51549768]
[1645212626801,0.25944634,2804.5,2804.3,6.79873768]
[1645212626999,0.25944634,2804.5,2804.4,1.51549768]
[1645212628053,0.2761866,2804.5,2804.4,1.51549768]
[1645212628456,0.2761866,2804.5,2804.3,2.40720768]
[1645212628654,0.2761866,2804.5,2804.4,1.51549768]
[1645212630552,0.2761866,2804.5,2804.3,1.51549768]
[1645212630755,0.01674026,2804.5,2804.4,1.51549768]
[1645212630954,0.01674026,2804.5,2804.4,5.31549768]
[1645212631263,0.2761866,2804.5,2804.4,7.79187768]
[1645212631894,0.03224139,2804.6,2804.5,6.5]
[1645212632093,0.03224139,2804.6,2804.5,12.20869768]
[1645212632394,0.03793667,2805.0,2804.5,8.70869768]
[1645212632593,0.0153742,2805.5,2804.6,3.17139768]
[1645212632792,0.00331058,2805.5,2804.8,3.5]
[1645212632994,0.00331058,2805.5,2804.9,1.51549768]
[1645212633193,0.00331058,2805.5,2804.6,1.6559]
[1645212633194,0.00331058,2805.5,2805.0,1.51549768]
[1645212633393,0.00331058,2805.5,2805.1,1.51549768]
[1645212635195,0.00331058,2805.5,2805.2,1.51549768]
[1645212635451,0.00331058,2805.5,2804.6,1.3559]
[1645212635643,0.00331058,2805.5,2804.7,1.51534408]
[1645212636244,0.00261161,2805.2,2805.0,0.00211303]
[1645212637143,0.00331058,2805.5,2804.8,1.51534408]
[1645212637543,0.00261161,2805.2,2805.0,0.00211303]
[1645212638048,0.00261161,2805.2,2805.1,0.1782]
[1645212638344,0.00261161,2805.2,2805.1,1.69354408]
[1645212638543,0.00331058,2805.5,2805.1,1.69354408]
[1645212638743,0.00331058,2805.5,2805.2,1.51534408]
[1645212639895,0.00585526,2805.5,2805.2,1.51534408]
[1645212640298,0.00585526,2805.5,2805.0,5.14559008]
[1645212640697,0.00585526,2805.5,2805.1,1.51525236]
[1645212640898,0.00331058,2805.5,2805.1,1.51525236]
[1645212641096,0.0025447,2805.4,2805.1,1.51525236]
[1645212641804,0.84739528,2805.8,2805.1,1.51525236]
[1645212641999,1.73898528,2805.8,2805.1,1.51525236]
[1645212642199,0.84739528,2805.8,2805.1,1.51525236]
[1645212643342,0.84739528,2805.8,2805.1,1.69345236]
[1645212643544,1.79405122,2806.0,2805.2,1.51525236]
[1645212643742,2.68552542,2806.0,2805.3,0.01302127]
[1645212643942,1.7830242,2806.0,2805.3,0.01302127]
[1645212644141,2.68552542,2806.0,2805.3,0.01302127]
[1645212644349,1.7830242,2806.0,2805.3,0.01302127]
[1645212644747,0.89406994,2805.8,2805.3,0.01302127]
[1645212645646,0.8915452,2805.8,2805.3,0.01302127]
[1645212645847,0.00236532,2805.7,2805.3,0.01302127]
[1645212646903,0.8915452,2805.8,2805.3,0.01302127]
[1645212647104,0.0023671,2805.6,2805.3,0.01302127]
[1645212648101,0.8915452,2805.8,2805.3,0.01302127]
[1645212648304,0.00236711,2805.6,2805.1,0.1782]
[1645212648503,0.00236711,2805.6,2805.2,1.51523496]
[1645212649203,0.8915452,2805.8,2805.2,1.51523496]
[1645212649406,0.00236712,2805.5,2805.2,1.51523496]
[1645212650451,0.90250122,2806.0,2805.2,1.81523496]
[1645212650652,6.08471796,2806.1,2805.3,1.69343496]
[1645212650653,0.0023775,2805.5,2805.3,1.69343496]
[1645212650851,0.0023775,2805.5,2805.4,1.51523496]
[1645212651551,5.7099,2806.1,2805.4,1.51523496]
[1645212651953,0.00237752,2805.6,2805.4,1.51523496]
[1645212652749,0.00237752,2805.6,2805.4,1.81523496]
[1645212652951,0.00539194,2806.3,2805.5,1.51523496]
[1645212653150,0.00237751,2805.6,2805.5,1.51523496]
[1645212653950,0.00950856,2806.1,2805.5,1.51523496]
[1645212654193,0.00539194,2806.3,2805.7,0.73391583]
[1645212654394,0.90250122,2806.5,2805.7,0.73391583]
[1645212654597,0.00539194,2806.4,2805.7,0.73391583]
[1645212655095,0.00539194,2806.4,2805.5,3.9888]
[1645212655294,0.00539194,2806.4,2805.6,1.51502445]
[1645212655694,1.79388662,2806.3,2805.5,3.9888]
[1645212655894,0.90250122,2806.3,2805.5,3.9888]
[1645212656894,0.90250122,2806.2,2805.5,3.9888]
[1645212657100,0.90250122,2806.1,2805.4,1.1272]
[1645212657497,11.82250122,2806.1,2805.3,0.01822978]
[1645212657956,11.82250122,2806.1,2805.0,3.89121303]
[1645212657957,0.00257634,2805.9,2805.0,3.89121303]
[1645212658147,0.00257634,2805.9,2805.1,1.51524132]
[1645212658347,0.87481573,2805.7,2805.1,1.51524132]
[1645212658554,0.87481573,2805.7,2805.0,0.15981303]
[1645212658555,0.90250122,2805.6,2805.0,0.15981303]
[1645212658749,12.09481573,2805.7,2804.4,7.49]
[1645212658750,11.82250122,2805.3,2804.4,7.49]
[1645212658950,15.32250122,2805.2,2804.4,7.49]
[1645212659151,11.0982,2805.2,2805.0,0.14464137]
[1645212659349,14.53241951,2805.1,2805.0,0.14464137]
[1645212659551,13.62694,2805.1,2805.0,4.137e-05]
[1645212659753,0.8920902,2804.8,2804.0,1.51575433]
[1645212659950,12.7041902,2804.8,2804.1,1.51575433]
[1645212660154,0.3,2804.7,2803.9,0.00334322]
[1645212660352,0.3,2804.7,2803.9,1.51911883]
[1645212660552,11.22,2804.8,2803.9,1.51911883]